bitfinex-derivatives/quotes_ETHF0:USTF0_20210702
["timestamp","ask_amount","ask_price","bid_price","bid_amount"]
[1625196603719,5.31417,2060.3,2060.2,2.20527]
[1625196605073,5.31417,2060.3,2058.8,6.18489219]
[1625196605476,5.31417,2060.3,2058.8,4.766]
[1625196605573,2.20527,2059.7,2059.4,2.20527]
[1625196605723,5.51917,2059.7,2059.4,2.20527]
[1625196607579,5.51917,2059.7,2059.6,2.20527]
[1625196609430,2.20527,2059.7,2059.6,2.20527]
[1625196609834,1.0,2060.5,2059.6,2.20527]
[1625196609931,1.0,2061.3,2059.6,2.20527]
[1625196610081,44.5162,2061.4,2059.6,2.20527]
[1625196610839,5.0,2061.3,2059.6,2.20527]
[1625196610939,8.2238,2061.3,2059.6,2.20527]
[1625196611039,9.2238,2061.3,2059.6,2.20527]
[1625196611640,2.20527,2060.1,2059.9,2.20527]
[1625196611940,2.20527,2060.1,2058.5,15.7925]
[1625196612047,2.20527,2060.1,2058.5,14.7925]
[1625196613242,2.20527,2060.1,2058.6,17.68]
[1625196613344,2.20527,2060.1,2058.6,20.9847]
[1625196613697,2.20527,2060.1,2059.8,2.20527]
[1625196614900,2.20527,2060.1,2059.6,2.20527]
[1625196615048,5.45857,2060.1,2059.6,2.20527]
[1625196615647,2.20527,2059.7,2059.6,2.20527]
[1625196620657,2.20527,2060.1,2059.6,2.20527]
[1625196621008,2.20527,2060.1,2058.6,1.0]
[1625196621109,4.47367,2060.1,2058.0,3.69048147]
[1625196621217,5.47367,2060.1,2057.7,1.42000092]
[1625196621414,5.0,2060.0,2057.7,1.42000092]
[1625196621512,1.0,2059.9,2057.7,1.42000092]
[1625196621772,5.0,2060.0,2058.5,2.20527]
[1625196622323,5.0,2060.0,2058.3,2.20527]
[1625196622423,6.0,2060.0,2058.3,2.20527]
[1625196623073,5.0,2059.8,2058.3,2.20527]
[1625196623723,4.41054,2058.4,2058.3,2.20527]
[1625196628233,7.27524,2058.4,2058.3,2.20527]
[1625196628685,7.27524,2058.4,2057.9,2.20527]
[1625196629735,2.20527,2058.0,2057.9,2.20527]
[1625196631906,2.20527,2058.0,2057.1,0.9651]
[1625196633809,2.20527,2058.0,2057.7,2.20527]
[1625196635161,2.20527,2058.0,2057.5,2.20527]
[1625196635262,5.93647,2058.0,2057.5,2.20527]
[1625196635763,2.20527,2057.6,2057.5,2.20527]
[1625196640591,2.20527,2058.0,2057.5,2.20527]
[1625196640703,2.20527,2058.0,2057.5,4.55777]
[1625196641798,2.20527,2057.6,2057.5,4.55777]
[1625196641898,2.20527,2057.6,2057.5,2.20527]
[1625196642650,19.80359315,2057.7,2057.5,2.20527]
[1625196642752,19.80359315,2057.7,2057.5,5.54747]
[1625196642851,9.315e-05,2057.7,2057.5,5.54747]
[1625196643650,9.315e-05,2057.7,2057.6,17.57]
[1625196643751,15.5944863,2057.9,2057.6,17.57]
[1625196643855,15.5944863,2057.9,2057.8,2.20527]
[1625196643953,2.20527,2058.0,2057.8,2.20527]
[1625196644904,19.80359315,2058.6,2057.8,2.20527]
[1625196645072,64.6208,2063.3,2057.8,3.17947]
[1625196645073,16.58425215,2061.1,2057.8,3.17947]
[1625196645205,1.81717209,2061.1,2057.9,1.0]
[1625196645355,15.2689,2060.9,2057.9,18.52]
[1625196645557,5.0,2060.8,2057.9,18.52]
[1625196645659,5.0,2060.8,2058.7,48.9293]
[1625196645756,5.0,2060.8,2058.7,49.8865]
[1625196645858,2.20527,2059.9,2059.7,2.20527]
[1625196647560,2.20527,2059.9,2059.4,2.20527]
[1625196647708,5.0,2059.8,2059.4,2.20527]
[1625196647810,8.5472,2059.8,2059.4,2.20527]
[1625196647909,2.20527,2059.5,2057.7,1.0]
[1625196648062,2.20527,2059.5,2055.7,5.866]
[1625196648063,2.20527,2059.5,2056.5,0.53787386]
[1625196648159,7.20527,2059.5,2056.5,0.53787386]
[1625196648461,7.20527,2059.5,2056.6,15.3337]
[1625196648560,2.20527,2059.5,2056.6,15.3337]
[1625196648817,2.20527,2059.5,2057.0,1.0]
[1625196649517,1.0,2059.7,2057.0,1.0]
[1625196649664,3.20527,2059.9,2057.8,3.9065]
[1625196649812,3.20527,2059.9,2057.9,17.49]
[1625196649916,2.20527,2059.9,2059.1,2.20527]
[1625196650065,2.20527,2059.9,2059.1,4.74767]
[1625196651923,2.20527,2059.9,2059.8,2.20527]
[1625196652020,2.20527,2059.9,2059.8,5.16557]
[1625196652220,2.20527,2060.0,2059.8,5.16557]
[1625196653423,2.20527,2060.0,2059.8,2.20527]
[1625196653922,4.41054,2060.0,2059.8,2.20527]
[1625196654677,4.41054,2060.0,2059.6,2.20527]
[1625196654778,6.88854,2060.0,2058.6,0.9709]
[1625196655939,2.20527,2059.2,2059.1,2.20527]
[1625196658002,4.41054,2059.2,2059.1,2.20527]
[1625196658607,3.7492,2060.8,2059.1,2.20527]
[1625196658703,6.58613487,2062.3,2059.1,4.53587]
[1625196658953,4.766,2062.3,2059.1,4.53587]
[1625196659654,5.0,2061.6,2059.1,4.53587]
[1625196659754,8.3734,2061.6,2059.1,2.20527]
[1625196659854,13.1394,2061.6,2057.3,16.1321]
[1625196659956,2.20527,2058.9,2058.7,2.20527]
[1625196660055,5.58837,2058.9,2058.7,2.20527]
[1625196662014,2.20527,2058.9,2058.7,2.20527]
[1625196662414,1.0,2060.1,2058.7,2.20527]
[1625196662566,5.766,2061.6,2058.7,5.13777]
[1625196663170,1.0,2061.4,2058.7,52.69397]
[1625196663271,1.0,2061.4,2058.8,17.6]
[1625196663971,2.20527,2060.4,2060.3,2.20527]
[1625196664070,2.20527,2060.4,2060.3,5.91487]
[1625196664920,5.766,2061.6,2060.3,5.91487]
[1625196665022,4.766,2061.6,2060.3,5.91487]
[1625196665984,2.20527,2060.4,2060.3,5.91487]
[1625196666226,9.4712,2061.6,2060.3,5.91487]
[1625196666227,8.4712,2061.6,2060.3,5.91487]
[1625196667223,13.4712,2061.6,2060.3,5.91487]
[1625196668026,2.20527,2060.7,2060.6,2.20527]
[1625196668280,5.53167,2060.7,2060.3,2.20527]
[1625196668378,5.53167,2060.7,2059.3,1.15]
[1625196668830,10.53167,2060.7,2059.0,0.9751]
[1625196669033,5.53167,2060.7,2059.0,0.9751]
[1625196669242,5.0,2060.6,2059.0,0.9751]
[1625196669445,5.53167,2060.7,2059.0,0.9751]
[1625196670044,2.20527,2059.5,2059.4,2.20527]
[1625196672056,4.41054,2059.5,2059.4,2.20527]
[1625196674709,4.41054,2059.5,2058.0,4.766]
[1625196674810,4.41054,2059.5,2057.0,2.97921452]
[1625196675114,4.41054,2059.5,2056.7,4.766]
[1625196675217,5.0,2059.4,2056.7,4.766]
[1625196675365,7.5349,2059.4,2056.8,15.8393]
[1625196676114,2.20527,2057.8,2057.7,2.20527]
[1625196678116,4.41054,2057.8,2057.5,2.20527]
[1625196678818,4.41054,2057.8,2057.1,3.17037]
[1625196680075,4.41054,2057.2,2057.1,3.17037]
[1625196680729,4.41054,2057.2,2057.1,0.9651]
[1625196681580,4.41054,2057.2,2057.1,0.0001]
[1625196681680,9.41054,2057.2,2057.0,14.39458417]
[1625196681780,9.41054,2057.2,2057.0,0.71758417]
[1625196681981,4.41054,2057.2,2057.0,0.71758417]
[1625196683899,4.41054,2057.2,2057.0,8.417e-05]
[1625196684505,4.41054,2057.2,2056.0,22.52488417]
[1625196684608,5.0,2057.1,2056.0,23.50408417]
[1625196684957,4.41054,2057.2,2056.0,23.50408417]
[1625196685765,5.0,2057.1,2056.0,23.50408417]
[1625196686112,4.41054,2056.1,2056.0,22.52488417]
[1625196686213,7.51854,2056.1,2055.0,22.52488417]
[1625196686315,5.0,2056.0,2055.0,22.52488417]
[1625196686912,5.0,2056.0,2055.0,3.27258417]
[1625196687214,8.0,2055.9,2055.0,2.52368417]
[1625196687319,5.0,2055.8,2054.0,22.52488417]
[1625196687471,5.0,2055.6,2054.0,22.52488417]
[1625196687566,7.8931,2055.6,2054.0,22.52488417]
[1625196687667,5.0,2054.2,2054.0,22.52488417]
[1625196687821,2.5804,2054.2,2054.0,12.30568417]
[1625196688166,4.41054,2054.1,2054.0,12.30568417]
[1625196688267,4.41054,2054.1,2054.0,10.76368417]
[1625196688366,4.41054,2054.1,2054.0,9.60368417]
[1625196688517,12.41054,2054.1,2054.0,8.39068417]
[1625196688622,4.41054,2054.1,2054.0,7.23068417]
[1625196688725,4.41054,2054.1,2054.0,6.07068417]
[1625196688817,5.85041929,2054.1,2053.6,0.15762725]
[1625196688916,1.1,2054.0,2053.0,13.67038528]
[1625196689069,1.1,2054.0,2053.0,12.22748528]
[1625196689167,2.54081168,2054.0,2053.0,12.22748528]
[1625196689267,17.74,2053.9,2053.0,12.22748528]
[1625196689468,17.74,2053.9,2053.0,12.17748528]
[1625196689617,1.44081168,2054.0,2053.0,12.17748528]
[1625196689618,7.2067858,2054.0,2053.0,12.17748528]
[1625196690120,4.41054,2053.1,2053.0,12.17748528]
[1625196690619,5.85150277,2053.1,2053.0,12.07408528]
[1625196691022,4.41054,2053.1,2053.0,12.07408528]
[1625196694684,4.41054,2053.1,2053.0,11.49978528]
[1625196694784,4.41054,2053.1,2052.0,22.52488417]
[1625196694885,7.61904,2053.1,2052.0,22.52488417]
[1625196694988,7.61904,2053.1,2052.0,19.17388417]
[1625196695187,12.20538753,2053.0,2052.0,19.17388417]
[1625196695288,29.88538753,2053.0,2052.0,19.17388417]
[1625196695542,7.20583973,2052.9,2052.0,19.17388417]
[1625196695640,5.0,2052.8,2052.0,19.17388417]
[1625196695887,22.58,2052.8,2052.0,19.17388417]
[1625196696148,4.41054,2052.1,2052.0,19.17388417]
[1625196696802,9.41054,2052.1,2052.0,19.17388417]
[1625196697048,4.41054,2052.1,2052.0,19.17388417]
[1625196699061,1.39668941,2053.5,2052.0,19.17388417]
[1625196699161,1.39668941,2053.5,2052.0,21.76418417]
[1625196699357,1.39627512,2053.9,2052.0,21.76418417]
[1625196699809,1.39588801,2054.5,2052.0,21.76418417]
[1625196700058,7.20189676,2054.7,2052.0,21.76418417]
[1625196700159,2.20527,2053.4,2053.3,2.20527]
[1625196700258,2.20527,2053.4,2053.3,5.67017]
[1625196700712,1.39550822,2055.0,2053.3,5.67017]
[1625196700816,6.39429255,2055.1,2053.3,5.67017]
[1625196701118,1.39429255,2055.1,2053.3,5.67017]
[1625196701217,7.19955082,2055.0,2053.3,5.67017]
[1625196701570,1.39413033,2055.2,2053.3,5.67017]
[1625196701924,6.39413033,2055.2,2053.3,5.67017]
[1625196702178,2.20527,2053.7,2053.6,2.20527]
[1625196703126,60.2398,2055.4,2053.6,2.20527]
[1625196703476,7.19834116,2055.3,2053.6,2.20527]
[1625196704179,2.20527,2054.5,2054.4,2.20527]
[1625196704277,2.20527,2054.5,2054.4,5.28417]
[1625196704981,2.78416828,2056.2,2054.4,5.28417]
[1625196704982,1.39183378,2056.2,2054.4,5.28417]
[1625196705431,8.58715634,2056.5,2054.4,5.28417]
[1625196705680,13.58715634,2056.5,2054.4,5.28417]
[1625196706082,7.19561934,2056.4,2054.4,5.28417]
[1625196706231,2.20527,2055.1,2054.9,2.20527]
[1625196706329,2.20527,2055.1,2054.9,5.62637]
[1625196707382,2.20527,2055.1,2054.9,3.4211]
[1625196707483,2.20527,2055.1,2054.4,2.20527]
[1625196708186,2.20527,2054.5,2054.4,4.41054]
[1625196709985,2.20527,2054.5,2053.7,0.9834]
[1625196710086,5.18397,2054.5,2053.7,0.9834]
[1625196710186,5.18397,2054.5,2054.0,2.20527]
[1625196710488,5.18397,2054.5,2052.4,1.0]
[1625196710587,5.18397,2054.5,2052.3,15.193]
[1625196711288,5.18397,2054.5,2052.8,1.15]
[1625196711639,5.18397,2054.5,2052.8,2.1335]
[1625196712240,2.20527,2053.8,2053.7,2.20527]
[1625196712940,1.0,2055.0,2053.7,2.20527]
[1625196713090,3.1636,2055.1,2053.7,2.20527]
[1625196713743,8.1636,2055.1,2053.7,2.20527]
[1625196713840,5.0,2055.1,2053.7,2.20527]
[1625196714342,2.20527,2054.0,2053.7,2.20527]
[1625196716253,2.20527,2053.9,2053.7,2.20527]
[1625196716959,2.20527,2053.9,2053.4,0.9691]
[1625196718015,2.20527,2053.9,2053.0,6.0]
[1625196718312,2.20527,2053.9,2053.6,2.20527]
[1625196718416,7.20527,2053.9,2053.0,6.0]
[1625196718765,7.20527,2053.9,2052.1,6.986]
[1625196718865,5.0,2053.7,2052.1,5.524]
[1625196719419,49.3208,2053.1,2052.1,5.524]
[1625196719517,5.0,2053.0,2052.1,5.524]
[1625196720268,4.41054,2052.2,2052.1,5.524]
[1625196721021,2.20527,2052.2,2052.1,5.524]
[1625196721919,4.70297,2052.2,2052.1,5.524]
[1625196722267,4.70297,2052.2,2052.1,7.72927]
[1625196722519,2.4977,2052.2,2052.1,7.72927]
[1625196723069,1.0,2053.7,2052.1,7.72927]
[1625196723172,0.9779,2055.3,2052.1,11.14097]
[1625196723271,1.38969208,2055.1,2052.1,11.14097]
[1625196723472,5.0,2054.8,2052.1,11.14097]
[1625196724325,2.20527,2053.7,2053.3,2.20527]
[1625196724423,2.20527,2053.7,2053.3,5.94967]
[1625196724825,58.74717,2053.7,2053.3,3.7444]
[1625196724923,5.0,2053.6,2053.3,3.7444]
[1625196725326,5.0,2053.6,2053.3,3.3602]
[1625196725425,5.0,2053.6,2052.1,5.524]
[1625196726280,4.41054,2052.2,2052.1,5.524]
[1625196726833,2.20527,2052.2,2052.1,5.524]
[1625196726933,16.7284,2054.9,2052.1,5.524]
[1625196727029,1.0,2054.8,2052.1,8.7427]
[1625196727138,2.1,2054.8,2052.1,8.7427]
[1625196727231,1.0,2054.8,2052.1,8.7427]
[1625196727684,6.0,2054.8,2052.1,8.7427]
[1625196728333,2.20527,2053.6,2053.5,2.20527]
[1625196728433,2.20527,2053.6,2053.5,5.12157]
[1625196730337,4.41054,2053.6,2053.5,5.12157]
[1625196731656,15.6284,2054.9,2053.5,5.12157]
[1625196731806,0.9779,2055.3,2053.5,5.12157]
[1625196731907,52.6926,2057.3,2053.5,5.12157]
[1625196732164,1.1,2055.8,2053.5,5.12157]
[1625196732365,2.20527,2054.4,2054.3,2.20527]
[1625196732565,2.20527,2054.4,2052.9,4.1947]
[1625196732665,2.20527,2054.4,2052.9,17.8112]
[1625196734422,2.20527,2054.4,2054.1,2.20527]
[1625196736317,2.20527,2054.2,2054.1,2.20527]
[1625196739331,0.9616,2056.5,2054.1,2.20527]
[1625196739475,1.0,2056.3,2054.1,5.22397]
[1625196739678,1.1,2056.2,2054.1,5.22397]
[1625196739777,2.1,2056.2,2054.1,5.22397]
[1625196739978,5.0,2056.1,2054.1,5.22397]
[1625196740176,6.1,2056.1,2054.1,5.22397]
[1625196740326,5.0,2056.1,2054.1,5.22397]
[1625196740427,2.20527,2055.0,2054.9,2.20527]
[1625196740579,2.20527,2055.0,2054.9,4.72967]
[1625196741427,14.9738,2057.2,2054.9,4.72967]
[1625196741629,2.1,2057.1,2054.9,4.72967]
[1625196742029,5.0,2057.0,2054.9,4.72967]
[1625196742377,2.20527,2055.6,2055.5,2.20527]
[1625196742477,2.20527,2055.6,2055.5,4.56667]
[1625196744894,4.59167,2055.6,2055.5,2.20527]
[1625196745334,5.0,2056.4,2055.5,2.20527]
[1625196745335,1.79694,2056.4,2055.5,2.20527]
[1625196745438,2.7279,2056.5,2055.5,2.20527]
[1625196745786,1.1,2057.4,2055.5,2.20527]
[1625196746291,5.0,2057.2,2055.5,2.20527]
[1625196746445,2.20527,2056.1,2056.0,2.20527]
[1625196748399,6.98024,2056.1,2056.0,2.20527]
[1625196748551,11.98024,2056.1,2055.5,2.20527]
[1625196749300,6.98024,2056.1,2055.5,2.20527]
[1625196749449,6.98024,2056.1,2050.3,7.154]
[1625196749550,6.98024,2056.1,2053.0,5.0]
[1625196749701,6.98024,2056.1,2053.1,1.0]
[1625196750112,6.98024,2056.1,2054.0,0.9732]
[1625196750404,2.20527,2055.4,2055.3,2.20527]
[1625196751616,3.6942,2056.6,2055.3,2.20527]
[1625196751862,3.1964,2057.1,2055.3,2.20527]
[1625196752373,1.80162733,2059.8,2055.3,2.20527]
[1625196752522,2.20527,2056.0,2055.9,2.20527]
[1625196752621,10.33647,2056.0,2055.3,2.20527]
[1625196752721,44.3329,2055.4,2055.3,2.20527]
[1625196752820,47.8969,2055.4,2055.3,2.20527]
[1625196753173,3.564,2055.4,2055.3,2.20527]
[1625196753323,2.20527,2056.0,2055.3,2.20527]
[1625196753423,2.20527,2056.0,2055.3,5.43107]
[1625196754424,2.20527,2056.0,2055.9,4.41054]
[1625196754525,2.20527,2056.0,2055.9,7.81684]
[1625196757037,6.0,2057.2,2055.9,7.81684]
[1625196757136,5.0,2057.2,2055.9,7.81684]
[1625196757336,52.6926,2057.3,2055.9,7.81684]
[1625196758448,52.6926,2057.3,2055.9,5.61157]
[1625196758449,5.0,2057.2,2055.9,5.61157]
[1625196758602,9.41054,2056.0,2055.5,2.20527]
[1625196758695,12.33014,2056.0,2055.0,8.47974208]
[1625196758792,7.33014,2056.0,2055.0,8.47974208]
[1625196759690,4.41054,2056.0,2055.0,8.47974208]
[1625196760492,2.20527,2055.3,2055.2,2.20527]
[1625196760692,3.9781,2057.2,2055.2,2.20527]
[1625196760799,52.6926,2057.3,2055.2,2.20527]
[1625196761613,5.0,2057.2,2055.2,2.20527]
[1625196762575,2.20527,2056.6,2056.5,2.20527]
[1625196762679,2.20527,2056.6,2056.5,5.28707]
[1625196763278,2.20527,2056.6,2056.5,3.0818]
[1625196763436,7.20527,2056.6,2055.0,8.47974208]
[1625196764280,2.20527,2056.6,2055.0,8.47974208]
[1625196764531,4.41054,2056.6,2056.1,2.20527]
[1625196764629,4.41054,2056.6,2056.1,5.28267]
[1625196765632,2.20527,2056.6,2056.1,5.28267]
[1625196766238,7.20527,2056.6,2056.1,5.28267]
[1625196766338,7.20527,2056.6,2056.1,2.20527]
[1625196766539,2.20527,2056.2,2056.1,2.20527]
[1625196768893,2.20527,2056.6,2056.1,2.20527]
[1625196768992,2.20527,2056.6,2056.1,4.99227]
[1625196770548,2.20527,2056.6,2056.5,2.20527]
[1625196774080,2.20527,2056.6,2056.1,4.99227]
[1625196774676,2.20527,2056.6,2056.5,2.20527]
[1625196776637,4.41054,2056.6,2056.5,2.20527]
[1625196779942,4.41054,2056.6,2056.1,2.20527]
[1625196780045,11.81064,2056.6,2056.0,8.47974208]
[1625196780651,4.41054,2056.1,2056.0,8.47974208]
[1625196781798,52.6926,2057.3,2056.0,8.47974208]
[1625196782198,5.0,2057.2,2056.0,8.47974208]
[1625196782648,2.20527,2056.8,2056.5,2.20527]
[1625196783850,2.20527,2056.8,2056.3,2.20527]
[1625196784099,2.20527,2056.8,2056.0,8.47974208]
[1625196784702,2.20527,2056.8,2056.2,2.20527]
[1625196785451,7.20527,2056.8,2056.2,2.20527]
[1625196785906,2.20527,2056.8,2056.2,2.20527]
[1625196786704,4.41054,2056.3,2056.2,2.20527]
[1625196788563,9.41054,2056.3,2056.0,2.20527]
[1625196788664,9.41054,2056.3,2053.4,0.9753]
[1625196788761,2.20527,2055.8,2055.7,2.20527]
[1625196788912,5.75417,2055.8,2055.7,2.20527]
[1625196790685,12.95944,2055.8,2055.7,2.20527]
[1625196790785,12.95944,2055.8,2054.2,29.3284]
[1625196792145,7.95944,2055.8,2054.2,29.3284]
[1625196792748,7.95944,2055.8,2055.4,2.20527]
[1625196792849,7.95944,2055.8,2055.4,5.05227]
[1625196793452,12.95944,2055.8,2055.4,5.05227]
[1625196793901,7.95944,2055.8,2055.4,5.05227]
[1625196794703,2.20527,2055.5,2055.4,5.05227]
[1625196796308,2.20527,2055.8,2055.4,5.05227]
[1625196796757,2.20527,2055.8,2055.7,2.20527]
[1625196797559,2.20527,2055.8,2054.3,1.0]
[1625196797659,5.58967,2055.8,2054.2,29.3284]
[1625196797959,5.0,2055.7,2054.2,29.3284]
[1625196798508,5.58967,2055.8,2054.2,29.3284]
[1625196798609,5.58967,2055.8,2054.2,32.7064]
[1625196798710,5.58967,2055.8,2055.6,2.20527]
[1625196798959,5.58967,2055.8,2055.4,2.20527]
[1625196799360,5.58967,2055.8,2054.2,32.7064]
[1625196800013,2.20527,2055.8,2054.2,32.7064]
[1625196800762,2.20527,2055.8,2055.7,2.20527]
[1625196800915,2.20527,2055.8,2055.7,4.65227]
[1625196802727,2.20527,2056.0,2055.7,4.65227]
[1625196803275,1.0,2057.0,2055.7,4.65227]
[1625196803381,7.14802063,2057.7,2055.7,4.65227]
[1625196803682,1.43836248,2057.2,2055.7,4.65227]
[1625196803880,6.43836248,2057.2,2055.7,4.65227]
[1625196804484,1.43841189,2057.1,2055.7,2.20527]
[1625196804789,2.20527,2056.2,2056.1,2.20527]
[1625196806823,4.41054,2056.2,2056.1,2.20527]
[1625196807577,1.0,2057.2,2056.1,2.20527]
[1625196807727,58.734,2057.1,2056.1,5.86887]
[1625196808028,63.734,2057.1,2056.1,5.86887]
[1625196808228,1.43836669,2057.0,2056.1,5.86887]
[1625196808581,1.43836669,2057.0,2056.1,3.6636]
[1625196808680,1.43836669,2057.0,2055.7,2.20527]
[1625196808780,4.41054,2055.8,2055.7,2.20527]
[1625196808880,7.10674,2055.8,2055.7,2.20527]
[1625196810035,2.6962,2055.8,2055.7,2.20527]
[1625196810134,1.0,2056.9,2055.7,2.20527]
[1625196810285,63.734,2057.1,2055.7,2.20527]
[1625196810434,1.43850624,2056.8,2055.7,2.20527]
[1625196810783,2.20527,2056.3,2056.0,2.20527]
[1625196811891,1.0,2057.2,2056.0,2.20527]
[1625196811991,1.42495946,2057.4,2056.0,2.20527]
[1625196812342,7.19134133,2057.5,2056.0,2.20527]
[1625196812442,5.0,2057.4,2056.0,2.20527]
[1625196812542,9.52144133,2057.5,2056.0,2.20527]
[1625196812792,2.20527,2056.7,2056.6,2.20527]
[1625196814794,4.41054,2056.7,2056.6,2.20527]
[1625196815045,7.00214,2056.7,2056.6,2.20527]
[1625196815395,8.44043828,2056.7,2056.6,2.20527]
[1625196815746,7.00214,2056.7,2056.6,2.20527]
[1625196817247,4.41054,2056.7,2056.6,2.20527]
[1625196817598,5.84876538,2056.7,2056.6,2.20527]
[1625196818754,4.41054,2056.7,2056.6,2.20527]
[1625196819206,5.84875393,2056.7,2056.6,2.20527]
[1625196823263,4.41054,2056.7,2056.6,2.20527]
[1625196823867,5.41054,2056.7,2054.9,3.0001]
[1625196823966,6.84870357,2056.7,2054.9,3.0001]
[1625196824270,1.43815039,2056.6,2054.9,3.0001]
[1625196824868,1.43815039,2056.6,2056.3,2.20527]
[1625196824971,1.43815039,2056.6,2056.3,5.35007]
[1625196825083,3.20527,2056.7,2056.3,5.35007]
[1625196825840,1.43809402,2056.6,2056.3,5.35007]
[1625196825940,4.95929402,2056.6,2056.3,5.35007]
[1625196826041,4.95929402,2056.6,2056.3,2.20527]
[1625196826341,4.95929402,2056.6,2056.1,2.20527]
[1625196826492,4.95929402,2056.6,2054.7,2.00140237]
[1625196826591,1.43827105,2056.5,2054.7,2.00140237]
[1625196826895,2.20527,2056.2,2055.8,2.20527]
[1625196827001,48.8133,2056.1,2055.8,2.20527]
[1625196827096,51.9404,2056.1,2054.9,2.00261429]
[1625196827348,1.43840003,2056.0,2054.9,2.00261429]
[1625196827599,1.43840003,2056.0,2054.5,2.00289053]
[1625196827898,1.43840003,2056.0,2054.4,2.86127219]
[1625196827899,1.43840003,2056.0,2054.4,2.00319987]
[1625196828851,2.20527,2055.4,2055.3,2.20527]
[1625196831808,58.8069,2056.2,2055.3,2.20527]
[1625196831908,58.8069,2056.2,2055.3,4.99407]
[1625196832308,7.19264306,2056.1,2055.3,4.99407]
[1625196832710,9.65674306,2056.1,2055.3,4.99407]
[1625196832961,2.20527,2055.7,2055.6,2.20527]
[1625196833813,3.6438496,2055.7,2055.6,2.20527]
[1625196834516,3.6438496,2055.7,2054.6,0.9609]
[1625196834614,8.6438496,2055.7,2054.5,2.00519512]
[1625196834874,13.4098496,2055.7,2054.5,2.00519512]
[1625196834968,13.4098496,2055.7,2054.3,5.44499182]
[1625196834969,4.41054,2054.6,2054.3,5.44499182]
[1625196835066,7.14894,2054.6,2054.3,5.44499182]
[1625196835718,1.43948937,2054.5,2054.3,5.44499182]
[1625196836120,7.19811399,2054.5,2054.3,5.44499182]
[1625196836282,5.0,2054.4,2054.3,5.44499182]
[1625196836381,5.0,2054.4,2054.3,5.38399182]
[1625196836481,5.0,2054.4,2054.3,5.30759182]
[1625196836581,5.0,2054.4,2054.3,5.24749182]
[1625196836834,12.199294,2054.4,2054.3,5.24749182]
[1625196837184,12.199294,2054.4,2054.3,5.19209182]
[1625196837535,7.199294,2054.4,2054.3,5.19209182]
[1625196837635,1.4398588,2054.4,2054.3,5.19209182]
[1625196838000,1.43980172,2054.5,2054.3,5.19209182]
[1625196838349,7.19924431,2054.5,2054.3,5.19209182]
[1625196838749,12.19924431,2054.5,2054.3,5.19209182]
[1625196839155,1.43993903,2054.4,2054.3,5.19209182]
[1625196839306,3.82693903,2054.4,2054.3,5.19209182]
[1625196839408,8.82693903,2054.4,2054.3,5.19209182]
[1625196839908,3.82693903,2054.4,2054.3,5.19209182]
[1625196840811,3.82693903,2054.4,2054.3,4.74519182]
[1625196840911,3.82693903,2054.4,2054.3,4.56029182]
[1625196841012,21.47693903,2054.4,2054.3,4.56029182]
[1625196841112,26.47693903,2054.4,2054.3,4.56029182]
[1625196841815,27.23735153,2054.4,2054.3,4.56029182]
[1625196841914,9.58735153,2054.4,2054.3,4.56029182]
[1625196842166,2.387,2054.4,2054.3,4.56029182]
[1625196842615,7.387,2054.4,2054.3,4.56029182]
[1625196842918,8.82699157,2054.4,2054.3,4.56029182]
[1625196843024,3.82699157,2054.4,2054.3,4.56029182]
[1625196843325,4.41054,2054.6,2054.3,4.56029182]
[1625196843425,4.41054,2054.6,2054.3,8.05539182]
[1625196843775,4e-05,2054.6,2054.3,8.05539182]
[1625196843870,1.81639375,2055.3,2054.3,8.05539182]
[1625196843970,1.81863112,2055.6,2054.3,8.05539182]
[1625196844069,1.43958259,2055.0,2054.3,8.05539182]
[1625196844420,1.43945373,2055.5,2054.3,8.05539182]
[1625196845018,2.20527,2055.1,2054.9,2.20527]
[1625196845519,1.43928534,2055.0,2054.9,2.20527]
[1625196845620,1.43928534,2055.0,2054.3,4.56029182]
[1625196845871,6.97127,2055.1,2054.3,4.56029182]
[1625196846172,58.3009,2054.9,2054.3,4.56029182]
[1625196846373,63.3009,2054.9,2054.3,4.56029182]
[1625196846775,58.3009,2054.9,2054.3,4.56029182]
[1625196846874,63.3009,2054.9,2054.3,4.56029182]
[1625196846974,4.41054,2054.4,2054.3,4.56029182]
[1625196847577,9.41054,2054.4,2054.3,4.56029182]
[1625196847675,12.16654,2054.4,2054.3,4.33629182]
[1625196847776,12.16654,2054.4,2054.3,3.93199182]
[1625196847874,12.16654,2054.4,2054.3,3.85969182]
[1625196848028,29.92654,2054.4,2054.3,3.75459182]
[1625196848228,29.92654,2054.4,2054.3,3.50669182]
[1625196848529,31.36681471,2054.4,2054.3,1.67769182]
[1625196849080,31.36681471,2054.4,2054.3,0.52583301]
[1625196849227,26.36681471,2054.4,2054.3,0.52583301]
[1625196849328,8.60681471,2054.4,2054.3,0.52583301]
[1625196849428,5.85081471,2054.4,2054.3,0.52583301]
[1625196849728,4.41054,2054.4,2054.3,0.52583301]
[1625196851039,9.41054,2054.4,2054.3,0.52583301]
[1625196851138,13.07614,2054.4,2054.3,0.52583301]
[1625196851705,8.07614,2054.4,2054.3,0.52583301]
[1625196852056,13.07614,2054.4,2054.3,0.52583301]
[1625196852361,13.07614,2054.4,2054.3,3.301e-05]
[1625196852514,13.07614,2054.4,2054.2,8.39907509]
[1625196852662,14.51638646,2054.4,2054.2,8.39907509]
[1625196852762,32.18638646,2054.4,2054.2,8.39907509]
[1625196853064,1.44019496,2054.3,2054.2,8.39907509]
[1625196853515,9.41054,2054.4,2054.2,8.39907509]
[1625196853665,4.41054,2054.4,2054.2,8.39907509]
[1625196854016,9.41054,2054.4,2054.2,8.39907509]